Cogmind - Beta 16 @@@ ROGUE MODE // 2025.11.22 @ 08:17:38 Player: Sharkenning Result: Destroyed by D-53 Grenadier with Mini Grenade Launcher Performance ------------- Evolutions (0) 0 Regions Visited (2) 400 Robots Destroyed (23) 115 Value Destroyed (368) 368 Prototype IDs (0) 0 Alien Tech Used (0) 0 Bonus (0) 0 TOTAL SCORE: 883 Bonus ------- None Cogmind --------- Core Integrity 0/250 Matter 274/300 Energy 98/100 System Corruption 1% Temperature Cool (0) Movement Walking (260) Ox2 Location -10/Mines Parts ------- > --- POWER (1) -------- (None) > --- PROPULSION (2) --- Aluminum Leg > --- UTILITY (2) ------ Large Storage Unit > --- WEAPON (2) ------- Light Assault Rifle > --- INVENTORY (15) --- High-capacity Storage Unit High-capacity Matter Pod (87) Sensor Array Signal Interpreter Seismic Detector Tractor Beam Peak State ------------ > --- POWER ------------ Ion Engine > --- PROPULSION ------- Aluminum Leg Aluminum Leg > --- UTILITY ---------- Small Storage Unit Seismic Detector > --- WEAPON ----------- Medium Laser Light Assault Rifle > --- INVENTORY -------- Light Ion Engine Light Treads Light Treads Tractor Beam Light Assault Rifle [Rating: 7] Favorites ----------- Power Ion Engine Engine Ion Engine Propulsion Aluminum Leg Leg Aluminum Leg Utility Seismic Detector Device Seismic Detector Storage Small Storage Unit Protection Light Armor Plating Weapon Medium Laser Energy Gun Medium Laser Ballistic Gun Light Assault Rifle Ballistic Cannon Light Cannon Special Weapon Mining Laser Build | -11 -10 -10 ------- Run | Yrd Mat Min Slots Evolved . | . . . Power . | . . . Propulsion . | . . . Utility . | . . . Weapon . | . . . Parts Attached 14 | 7 6 1 Power 2 | 1 1 . Engine 2 | 1 1 . Core . | . . . Reactor . | . . . Propulsion 3 | 2 1 . Treads . | . . . Leg 3 | 2 1 . Wheel . | . . . Hover . | . . . Flight . | . . . Utility 4 | 2 2 . Device 1 | 1 . . Storage 2 | 1 1 . Processor . | . . . Hackware . | . . . Protection 1 | . 1 . Artifact . | . . . Weapon 5 | 2 2 1 Energy Gun 1 | 1 . . Energy Cannon . | . . . Ballistic Gun 2 | 1 . 1 Ballistic Cannon 1 | . 1 . Launcher . | . . . Special Weapon 1 | . 1 . Impact Weapon . | . . . Slashing Weapon . | . . . Piercing Weapon . | . . . Special Melee Weapon . | . . . Unidentified Prototypes . | . . . Parts Lost 5 | . . 5 Power . | . . . Propulsion 1 | . . 1 Utility 1 | . . 1 Weapon 3 | . . 3 Highest Loss Streak 4 | . . 4 To Critical Strikes . | . . . Average Backups 7 | 3 7 7 Power . | . . . Propulsion . | 1 1 . Utility 4 | . 3 6 Weapon 1 | 1 2 1 Tool/Special . | . . . Unused Backups 8 | . 2 6 Power . | . . . Propulsion 3 | . 2 1 Utility 5 | . . 5 Weapon . | . . . Tool/Special . | . . . Average Slot Usage (%) 99 | . 100 97 Engine 13 | . 14 13 Leg 27 | . 28 27 Device 12 | . 12 13 Storage 14 | . 14 14 Protection 1 | . 1 . Energy Gun 13 | . 14 13 Ballistic Gun 1 | . 2 . Ballistic Cannon 8 | . 5 13 Special Weapon 4 | . 5 . Peak Build Rating 7 | 7 7 7 Average Rating 6 | 5 7 6 On Entrance 4 | . 7 7 Avg Prop Armor Cover (%) . | . . . Naked Turns . | . . . Heaviest Build 29 | 14 29 29 Greatest Support 20 | 20 20 20 Greatest Overweight (x) 1 | 1 1 1 Average Overweight (x) . | . . 1 Largest Inventory Capacity 15 | 8 15 15 Average Capacity 10 | 7 9 15 Most Carried 8 | 6 8 8 Average Carried 7 | 3 7 7 Final Capacity 15 | 8 15 15 Final Carried 8 | 6 8 6 Class Distribution -------------------- 91% | Mutant 8% | Scavenger-Mutant Dominant Class ---------------- Mutant | -10/Materials Mutant | -10/Mines Resources | -11 -10 -10 ----------- Run | Yrd Mat Min Matter Collected 626 | 281 166 179 Remotely . | . . . Salvage Created 544 | 151 328 65 Parts 42 | 11 28 3 Haulers Intercepted 1 | . 1 . Recyclers Shooed . | . . . Parts Field Recycled . | . . . Retrieved Matter . | . . . Parts Self-Destructed . | . . . Prevented . | . . . Parts Restored . | . . . Kills | -11 -10 -10 ------- Run | Yrd Mat Min Combat Hostiles Destroyed 13 | . 11 2 Guns 5 | . 5 . Cannons 8 | . 6 2 Classes Destroyed 8 | 2 5 1 Tunneler 4 | 4 . . Hauler 1 | . 1 . Recycler 2 | 1 1 . Operator 1 | . 1 . Watcher 2 | . 2 . Swarmer 9 | . 9 . Grunt 3 | . 2 1 Demolisher 1 | . . 1 Best Kill Streak 3 | 3 3 1 Combat Bots Only 3 | . 3 1 Max Kills in Single Turn 1 | 1 1 1 Gunslinging . | . . . Exploded . | . . . Melee . | . . . Uniques/NPCs Destroyed . | . . . Combat | -11 -10 -10 -------- Run | Yrd Mat Min Hostile Shots Fired 53 | . 33 20 Missed 10 | . 9 1 Hits 43 | . 24 19 Projectile 43 | . 24 19 AOE 16 | . . 16 Damage Taken 904 | . 202 702 Core 252 | . 24 228 Absorbed by Shields . | . . . Core Remaining (%) 100 | 100 . . Volleys Fired 65 | 11 45 9 Largest 2 | 2 2 2 Hottest 150 | 70 150 80 Shots Fired 116 | 22 81 13 Gun 72 | 22 44 6 Cannon 33 | . 26 7 Launcher . | . . . Special 11 | . 11 . Kinetic 54 | 11 34 9 Thermal 62 | 11 47 4 Explosive . | . . . Electromagnetic . | . . . Robot Hit Streak 7 | 7 6 4 Robot Miss Streak 3 | 2 3 2 Penetration Max . | . . . Secondary Targets . | . . . Shots Hit Robots 58 | 15 35 8 Core Hits 31 | 8 18 5 Critical Kills . | . . . Critical Parts Destroyed . | . . . Critical Strikes 6 | . 6 . Burn 5 | . 5 . Blast 1 | . 1 . Melee Attacks . | . . . Impact . | . . . Slashing . | . . . Piercing . | . . . Sneak Attacks . | . . . Combat Hostiles . | . . . Follow-up Attacks . | . . . Damage Inflicted 851 | 186 527 138 Guns 522 | 186 298 38 Cannons 322 | . 229 93 Explosions . | . . . Melee . | . . . Ramming 7 | . . 7 Kinetic 432 | 75 264 93 Thermal 412 | 111 263 38 Explosive . | . . . Electromagnetic . | . . . Impact . | . . . Slashing . | . . . Piercing . | . . . Highest Corruption 1 | . . 1 Average Corruption 1 | . . 1 Corruption Purged . | . . . Corruption Blocked . | . . . Effects 4 | . . 4 Message Errors 1 | . . 1 Parts Rejected 1 | . . 1 Data Loss (major) 1 | . . 1 Alerts 1 | . . 1 Overload Shots . | . . . Overflow Damage 28 | . 28 . Projectiles 28 | . 28 . Explosions . | . . . Melee . | . . . Knockbacks 4 | . 4 . Impact . | . . . Kinetic 4 | . 4 . Secondary . | . . . Self-Inflicted Damage . | . . . Shots . | . . . Rammed . | . . . Targets Rammed 1 | . . 1 Kicked 1 | . . 1 Crushed . | . . . Highest Temperature 132 | 90 132 29 Average Temperature 34 | 38 34 20 Received Heat Transfer 24 | . . 24 Siege Activations . | . . . Martial Activations . | . . . Shielding Activations . | . . . Robots Disrupted . | . . . Combat Hostiles . | . . . Robots Corrupted . | . . . Combat Hostiles . | . . . Parts Fried . | . . . Impact Corruptions . | . . . Robots Melted . | . . . Combat Hostiles . | . . . Parts Melted 5 | 1 3 1 Heat Transferred 1591 | 333 1147 111 Parts Sabotaged . | . . . Parts Stolen . | . . . Parts Stripped . | . . . Power Chain Reactions . | . . . Alert | -11 -10 -10 ------- Run | Yrd Mat Min Maximum Alert Level . | . . . Low Security (%) 100 | 100 100 100 Level 1 . | . . . Level 2 . | . . . Level 3 . | . . . Level 4 . | . . . Level 5 . | . . . High Security . | . . . Max Security . | . . . Peak Influence 133 | 10 133 43 Initial 23 | . . 23 Average 37 | 2 59 6 Influence Increases 423 | 25 338 60 Destroy 0b10 Robot/C 260 | . 220 40 Destroy 0b10 Robot/NC 50 | 25 25 . Destroy Leader 66 | . 46 20 Successful Hack 9 | . 9 . Disable Machine 30 | . 30 . Destroy Structure 8 | . 8 . Influence Decreases 413 | 25 278 110 Entered New Map 37 | . . 37 Time Decay 346 | 25 278 43 Lost Part 30 | . . 30 Squads Dispatched 4 | . 4 . Investigation 1 | . 1 . Extermination . | . . . Reinforcement 3 | . 3 . Assault . | . . . Garrison . | . . . Intercept . | . . . Searches Triggered . | . . . Construction Impeded . | . . . Haulers Reinforced . | . . . Active Scanning Responses . | . . . Cargo Convoy Interrupts . | . . . Stealth | -11 -10 -10 --------- Run | Yrd Mat Min Distress Signals 1 | . 1 . Communications Jammed . | . . . Distress Signals . | . . . Times Spotted 22 | . 18 4 Peak Tracking Total 3 | . 3 2 Tactical Retreats . | . . . Traps | -11 -10 -10 ------- Run | Yrd Mat Min Traps Triggered . | . . . Indirectly . | . . . Trap Hack Attempts . | . . . Triggered . | . . . Disarmed . | . . . Reprogrammed . | . . . Reused . | . . . Traps Extracted . | . . . Installed . | . . . Triggered . | . . . Machines | -11 -10 -10 ---------- Run | Yrd Mat Min Machines Disabled 2 | . 2 . Max in Single Turn 1 | . 1 . Machines Repaired . | . . . Machines Dismantled . | . . . Machines Sabotaged . | . . . Overloaded Fab Kills . | . . . Hacking | -11 -10 -10 --------- Run | Yrd Mat Min Machines Accessed 5 | . 5 . Terminals 3 | . 3 . Fabricators . | . . . Repair Stations . | . . . Recycling Units 2 | . 2 . Scanalyzers . | . . . Garrison Access . | . . . Total Hacks 12 | . 12 . Successful 6 | . 6 . Failed 6 | . 6 . Catastrophic . | . . . Database Lockouts . | . . . Manual 6 | . 6 . Terminals 10 | . 10 . Fabricators . | . . . Repair Stations . | . . . Recycling Units 2 | . 2 . Scanalyzers . | . . . Garrison Access . | . . . Terminal Hacks 2 | . 2 . Robot Analysis 1 | . 1 . Locate Traps 1 | . 1 . Fabricator Hacks . | . . . Repair Station Hacks . | . . . Recycling Unit Hacks 2 | . 2 . Report Inventory 2 | . 2 . Scanalyzer . | . . . Garrison Access Hacks . | . . . Unauthorized Hacks 2 | . 2 . Terminals 2 | . 2 . Botnet 2 | . 2 . Fabricators . | . . . Repair Stations . | . . . Recycling Units . | . . . Scanalyzers . | . . . Garrison Access . | . . . Data Cores Recovered . | . . . Used . | . . . Hacking Detections 3 | . 3 . Full Trace Events 1 | . 1 . Feedback Events . | . . . Feedback Blocked . | . . . Robot Schematics Acquired . | . . . Robots Built . | . . . Authchips . | . . . Time . | . . . Total Robot Build Rating . | . . . Part Schematics Acquired . | . . . Parts Built . | . . . Authchips . | . . . Time . | . . . Total Part Build Rating . | . . . Part Studies Acquired . | . . . Parts Repaired . | . . . Time . | . . . Parts Recycled . | . . . Recycled Matter . | . . . Retrieved Matter . | . . . Retrieved Components . | . . . Parts Scanalyzed . | . . . Part Schematics Acquired . | . . . Parts Damaged . | . . . Bothacking | -11 -10 -10 ------------ Run | Yrd Mat Min Used RIF Installer . | . . . Robots Hacked . | . . . Non-combat . | . . . Combat . | . . . Robot Hacks Applied . | . . . Relay Couplers Released . | . . . Fabnet Peak Effective % . | . . . Robots Rewired . | . . . Allies Hacked . | . . . Hacks Repelled . | . . . Allies | -11 -10 -10 -------- Run | Yrd Mat Min Total Allies . | . . . Largest Group . | . . . Highest-Rated Group . | . . . Highest-Rated Ally . | . . . Total Orders . | . . . Ally Attacks . | . . . Total Damage . | . . . Kills . | . . . Allies Corrupted . | . . . Allies Melted . | . . . Intel | -11 -10 -10 ------- Run | Yrd Mat Min Active Infowar (turns) 1019 | 42 642 335 Seismic 1019 | 42 642 335 Robot Analysis Total 1 | . 1 . Derelict Logs Recovered . | . . . Drone Launches . | . . . Drone Recoveries . | . . . Exploration | -11 -10 -10 ------------- Run | Yrd Mat Min Turns Passed 1196 | 125 715 356 Spaces Moved 643 | 71 400 172 Core 22 | 22 . . Treads . | . . . Legs 621 | 49 400 172 Wheels . | . . . Hover . | . . . Flight . | . . . Fastest Speed 50 | 50 120 190 Average Speed 143 | 107 129 190 Slowest Speed 190 | 120 190 190 Overloaded Moves . | . . . Propulsion Burnouts . | . . . Robots Hopped . | . . . Potential Cave-ins . | . . . Cave-ins Triggered . | . . . Exploration Rate (%) 37 | 5 64 43 Regions Visited 2 Branch Regions 1 Pre-discovered Areas . | . . . Known Exits Taken . | . . . Unknown Exits Taken 2 | 1 1 . Scrap Searched 2 | . . 2 Spaces Dug 8 | . 8 . Terrain Destroyed 8 | . 8 . Melee . | . . . Projectile 8 | . 8 . AOE . | . . . Terrain Rammed . | . . . Walls Destroyed . | . . . Machines Disabled . | . . . Actions | -11 -10 -10 --------- Run | Yrd Mat Min Total 779 | 99 492 188 Wait 21 | . 20 1 Move 641 | 70 399 172 Hop . | . . . Pick Up 19 | 11 7 1 Fast Attach 2 | 2 . . Attach 7 | 5 . 2 Detach . | . . . Swap 15 | . 14 1 Drop 8 | . 7 1 Fire 65 | 11 45 9 Melee . | . . . Ram . | . . . Kick 1 | . . 1 Crush . | . . . Escape Stasis . | . . . Rewire . | . . . Trap . | . . . Miscellaneous . | . . . Route ------- -11/Scrapyard -10/Materials (discovered 3 exits: [*Mat] / [*Min x2]) -10/Mines History --------- Turn | Location | Event 15 | -11/Scrapyard | Discovered new exit (range 14) 126 | -11/Scrapyard | Entered Materials 126 | -10/Materials | Discovered new exit (range 8) 310 | -10/Materials | Build established: Mutant 312 | -10/Materials | Discovered new exit (range 14) 454 | -10/Materials | Discovered new exit (range 3) 841 | -10/Materials | Entered Mines 1126 | -10/Mines | Assembled infested the area 1186 | -10/Mines | Core integrity fell below 50% 1196 | -10/Mines | Core integrity fell below 20% 1197 | -10/Mines | Destroyed by D-53 Grenadier with Mini Grenade Launcher Last Messages --------------- lost. T-07 Excavator is excavating. System corrupted: IFF burst signal emitted. K-01 Serf collects debris. ALERT: Infestation in the mines, dispatching Demolisher response squad. C-45 Heavy ARC bursts open, deploying its payload. D-53 Grenadier unfolds itself. System corrupted: Lgt. Ion Engine rejected. Aluminum Leg destroyed. Lgt. Armor Plating destroyed. The unstable cave ceiling collapses. Shock Absorption System melted. D-53 Grenadier destroyed. The unstable cave ceiling collapses. Med. Laser destroyed. The unstable cave ceiling collapses. Lgt. Cannon destroyed. The unstable cave ceiling collapses. Map ----- +----------------------------------------------------+ | ?????????????????????????????????????????????????? | | ????????????????????????? ???????????????????????? | | ????????????????????????# ???????????????????????? | | ????????????????????????# #??????????????????????? | | ???????????????????????## ##????????????????????? | | ??????????????????????## #???????????????????? | | ????????????????????### ##?????????????????? | | ???????????????????## #?????????????????? | | ???????????????????# #?????????????????? | | ???????????????????# ##????????????????? | | ????????????????????# ##???????????????? | | ?????????????????????# ##??? #?????????? | | ??????????????????????# ### #?????????? | | ???????????????????????# #?????????? | | ????????????????????????# #?????????? | | ???????????????????????????# ##??????????????? | | ???????????????????????????## ####???????????? | | ???????????????????????????## ##??????????? | | ??????????????????????????## #??????????? | | ???????????????????????#### #??????????? | | ??????????????????????## ##??????????? | | ?????????????????????## ##??????????? | | ????????????????????## #??????????? | | ????????????????????# #??????????? | | ????????????????????# ##??????????? | | ????????????????????# #@ #######???????????? | | ????????????????????# ##?????????????????? | | ????????????????????## ##?????????????????? | | ????????????????????## ##????????????####? | | ?????????????????????## = ##??????????## ## | | ??????????????????????####%] #####??????# | | ????????????????????????##%d ######## | | ????????????????????????# | | ???????????????????????# | | ??????????????????????# ### # ### | | ??????????????????????# ##?### ### | | ??????????????????????## ##????# | | ???????????????????????## #?????### ## | | ????????????????????????# #???????# ### # | | ????????????????######### ##???????# #?# ## | | ????????????????# ! #####?????#### #?# ##? | | ????????????????# ####### #?????????# #?# #?? | | ????????????????# #?????# #?????????# ####?# #?? | | ????????????##### #?????# #?????????# #???## ### | | ????????????# #?????# #?????????# #??## ## | | ????????????# #####?????# #?????????# #??# | | ????????????# #?????????# !#?????????# #??# | | ########????# #?????????# #?????????# #??## #### | | # ###### #?????????# #?????????# #???###???# | | ## #?????????# #?????????# #?????????? | +----------------------------------------------------+ Best States ------------- Heat Dissipation 25 Energy Generation 10 Energy Capacity 250 Matter Stores 300 Matter Capacity 300 Sight Range 16 Terrain Scan Density 10 Armor Coverage 150 Evasion (%) 55 Item Schematics ----------------- None Robot Schematics ------------------ None Fabricated ------------ Nothing Repaired ---------- Nothing Studied --------- None Alien Tech Used ----------------- None Achievements -------------- None Challenges ------------ None Game ------ Seed ZeronetCorruptionCalibrator Manual? 0 Play Time 00:16:00 Cumulative 19.1 hours Start 2025.11.22 @ 08:03:51 End 2025.11.22 @ 08:17:38 Sessions 1 Manual Loads 0 Difficulty Rogue Special Mode None Game No. 10 Rogue 10 Adventurer 0 Explorer 0 Win Type - Total 0 Types 0/0/0/0/0/0/0/0/0/0 Lore% 15 Gallery% 15 Achievement% 18 Wizard Run 0 Options --------- Layout 1 ASCII 0 Keyboard 0 Movement Mouse Keybinds 0 Fullscreen 1 Font 32/SmallcapsGlow Map View 50x35 Zoom Use 0% Tactical HUD 0 Map Filters NONE Filters NONE Steam 1 RUN: a93ff138-87e0-415a-9adc-5c5b08fa85a9